[Event "*** SCC Grand Prix: Titled Tuesday Blitz"]
[Site "Chess.com"]
[Date "2020.06.02"]
[Round "3"]
[White "AlexTriapishko"]
[Black "Micki-taryan"]
[Result "0-1"]
[WhiteElo "2705"]
[BlackElo "3047"]
[TimeControl "180+1"]
[EndTime "10:30:08 PDT"]
[Termination "Micki-taryan won on time"]

1. e4 {[%clk 0:03:00.6]} 1... e5 {[%clk 0:02:56.9]} 2. Nf3 {[%clk 0:03:00.5]}
2... Nc6 {[%clk 0:02:57.8]} 3. Bb5 {[%clk 0:03:00.9]} 3... Nf6 {[%clk
0:02:55.6]} 4. O-O {[%clk 0:02:56.6]} 4... Nxe4 {[%clk 0:02:54.3]} 5. Re1 {[%clk
0:02:56.7]} 5... Nd6 {[%clk 0:02:52.8]} 6. Nxe5 {[%clk 0:02:57.2]} 6... Be7
{[%clk 0:02:52.4]} 7. Bf1 {[%clk 0:02:56.7]} 7... Nxe5 {[%clk 0:02:46.7]} 8.
Rxe5 {[%clk 0:02:57.6]} 8... O-O {[%clk 0:02:46.7]} 9. Nc3 {[%clk 0:02:58.2]}
9... Ne8 {[%clk 0:02:43.7]} 10. Nd5 {[%clk 0:02:57.5]} 10... Bd6 {[%clk
0:02:42.8]} 11. Re1 {[%clk 0:02:57]} 11... c6 {[%clk 0:02:40.3]} 12. Ne3 {[%clk
0:02:57.4]} 12... f5 {[%clk 0:02:36.9]} 13. d4 {[%clk 0:02:47.7]} 13... Bc7
{[%clk 0:02:36.8]} 14. Nc4 {[%clk 0:02:44.8]} 14... Kh8 {[%clk 0:02:28.5]} 15.
c3 {[%clk 0:02:37]} 15... Nf6 {[%clk 0:02:23.3]} 16. Qf3 {[%clk 0:02:21.6]}
16... Ng4 {[%clk 0:02:18.7]} 17. Bf4 {[%clk 0:02:17.8]} 17... d6 {[%clk
0:02:07.6]} 18. h3 {[%clk 0:02:09.8]} 18... Nf6 {[%clk 0:02:06.7]} 19. Bd3
{[%clk 0:02:01.4]} 19... Nd5 {[%clk 0:01:43.5]} 20. Bh2 {[%clk 0:01:29.7]} 20...
b5 {[%clk 0:01:35.2]} 21. Ne3 {[%clk 0:01:25.3]} 21... Be6 {[%clk 0:01:35.6]}
22. Bxb5 {[%clk 0:01:01.2]} 22... f4 {[%clk 0:01:11.4]} 23. Nf1 {[%clk
0:00:43.4]} 23... Bd7 {[%clk 0:01:11.6]} 24. Bd3 {[%clk 0:00:41.5]} 24... Rb8
{[%clk 0:01:12]} 25. Re2 {[%clk 0:00:38]} 25... Qg5 {[%clk 0:01:12]} 26. Rae1
{[%clk 0:00:35]} 26... h5 {[%clk 0:01:06.1]} 27. Nd2 {[%clk 0:00:24.5]} 27...
Rxb2 {[%clk 0:00:57.7]} 28. Ne4 {[%clk 0:00:24.6]} 28... Rxe2 {[%clk 0:00:58.6]}
29. Bxe2 {[%clk 0:00:22.8]} 29... Qh6 {[%clk 0:00:59.1]} 30. Qxh5 {[%clk
0:00:20.6]} 30... Re8 {[%clk 0:00:54.5]} 31. Qxh6+ {[%clk 0:00:14.8]} 31... gxh6
{[%clk 0:00:55.4]} 32. Bh5 {[%clk 0:00:08.8]} 32... Re7 {[%clk 0:00:51.1]} 33.
f3 {[%clk 0:00:05.9]} 33... Bf5 {[%clk 0:00:51.1]} 34. c4 {[%clk 0:00:04.1]}
34... Nf6 {[%clk 0:00:48.7]} 35. Bg4 {[%clk 0:00:04.5]} 35... Bxe4 {[%clk
0:00:46.3]} 36. fxe4 {[%clk 0:00:04.3]} 36... Bb6 {[%clk 0:00:46.1]} 37. Bxf4
{[%clk 0:00:03.6]} 37... Bxd4+ {[%clk 0:00:45.5]} 38. Kh2 {[%clk 0:00:04.1]}
38... Be5 {[%clk 0:00:42.9]} 39. Bxe5 {[%clk 0:00:03.6]} 39... Rxe5 {[%clk
0:00:43.8]} 40. Bf3 {[%clk 0:00:04.1]} 40... d5 {[%clk 0:00:42.7]} 41. cxd5
{[%clk 0:00:03.2]} 41... cxd5 {[%clk 0:00:43.2]} 42. Kg3 {[%clk 0:00:03.8]}
42... dxe4 {[%clk 0:00:38]} 43. Kf4 {[%clk 0:00:04.1]} 43... Ra5 {[%clk
0:00:35.4]} 44. Bxe4 {[%clk 0:00:04.4]} 44... Rxa2 {[%clk 0:00:35.9]} 45. Bf3
{[%clk 0:00:04.9]} 45... Kg7 {[%clk 0:00:29.6]} 46. Re7+ {[%clk 0:00:04.8]}
46... Kg6 {[%clk 0:00:30.2]} 47. h4 {[%clk 0:00:05.2]} 47... Ra4+ {[%clk
0:00:29.8]} 48. Kg3 {[%clk 0:00:05.5]} 48... a5 {[%clk 0:00:29.8]} 49. Re5
{[%clk 0:00:03.9]} 49... Ra3 {[%clk 0:00:28.7]} 50. h5+ {[%clk 0:00:03.8]} 50...
Kf7 {[%clk 0:00:29.3]} 51. Kf4 {[%clk 0:00:03.9]} 51... Ra1 {[%clk 0:00:28]} 52.
g4 {[%clk 0:00:02.7]} 52... Nd7 {[%clk 0:00:22.1]} 53. Bd5+ {[%clk 0:00:02.5]}
53... Kf8 {[%clk 0:00:20.6]} 54. Re6 {[%clk 0:00:03]} 54... Rd1 {[%clk
0:00:19.6]} 55. Bf3 {[%clk 0:00:02.5]} 55... Rd4+ {[%clk 0:00:17.5]} 56. Ke3
{[%clk 0:00:02.9]} 56... Rb4 {[%clk 0:00:17.4]} 57. Rxh6 {[%clk 0:00:01]} 57...
Ne5 {[%clk 0:00:17.8]} 0-1

[Event "*** SCC Grand Prix: Titled Tuesday Blitz"]
[Site "Chess.com"]
[Date "2020.06.02"]
[Round "3"]
[White "luizwas"]
[Black "AniJak"]
[Result "0-1"]
[WhiteElo "1849"]
[BlackElo "2246"]
[TimeControl "180+1"]
[EndTime "10:30:12 PDT"]
[Termination "AniJak won by resignation"]

1. e4 {[%clk 0:03:00.9]} 1... c6 {[%clk 0:02:59.8]} 2. d4 {[%clk 0:02:59.9]}
2... d5 {[%clk 0:03:00.3]} 3. exd5 {[%clk 0:02:59.8]} 3... cxd5 {[%clk
0:03:00.3]} 4. Bd3 {[%clk 0:03:00.3]} 4... Nc6 {[%clk 0:02:59.9]} 5. c3 {[%clk
0:03:00.5]} 5... Nf6 {[%clk 0:02:59.5]} 6. Nf3 {[%clk 0:03:00.9]} 6... Bg4
{[%clk 0:02:56.2]} 7. Bg5 {[%clk 0:02:55.5]} 7... e6 {[%clk 0:02:54.4]} 8. Nbd2
{[%clk 0:02:55.7]} 8... Be7 {[%clk 0:02:53.4]} 9. Qc2 {[%clk 0:02:55.4]} 9... h6
{[%clk 0:02:44.8]} 10. Be3 {[%clk 0:02:53.3]} 10... a6 {[%clk 0:02:39.4]} 11. h3
{[%clk 0:02:53.7]} 11... Bxf3 {[%clk 0:02:36.3]} 12. Nxf3 {[%clk 0:02:52.4]}
12... b5 {[%clk 0:02:35.5]} 13. g4 {[%clk 0:02:50.2]} 13... Rc8 {[%clk
0:02:30.6]} 14. a3 {[%clk 0:02:49]} 14... Na5 {[%clk 0:02:27.6]} 15. Ne5 {[%clk
0:02:40.7]} 15... Nc4 {[%clk 0:02:25.2]} 16. Bxc4 {[%clk 0:02:35]} 16... dxc4
{[%clk 0:02:19.3]} 17. f4 {[%clk 0:02:17.2]} 17... Nd5 {[%clk 0:02:18.6]} 18.
Bd2 {[%clk 0:02:10.2]} 18... Bh4+ {[%clk 0:02:17.9]} 19. Kd1 {[%clk 0:02:05.5]}
19... a5 {[%clk 0:02:00]} 20. f5 {[%clk 0:01:45.7]} 20... exf5 {[%clk
0:01:48.2]} 21. Qxf5 {[%clk 0:01:46.6]} 21... O-O {[%clk 0:01:43.6]} 22. Rf1
{[%clk 0:00:57.8]} 22... Rc7 {[%clk 0:01:42.9]} 23. Qh5 {[%clk 0:00:50.9]} 23...
Bg5 {[%clk 0:01:38.1]} 24. h4 {[%clk 0:00:34.8]} 24... Bxd2 {[%clk 0:01:36.7]}
25. Kxd2 {[%clk 0:00:33.8]} 25... Nf6 {[%clk 0:01:24.4]} 26. Qf5 {[%clk
0:00:31]} 26... Qd5 {[%clk 0:01:23.6]} 27. g5 {[%clk 0:00:30.1]} 27... Qg2+
{[%clk 0:01:16.7]} 28. Rf2 {[%clk 0:00:29.4]} 28... Ne4+ {[%clk 0:01:14]} 29.
Ke3 {[%clk 0:00:26.7]} 29... Qxf2+ {[%clk 0:01:05.8]} 30. Qxf2 {[%clk
0:00:27.6]} 30... Nxf2 {[%clk 0:01:05.8]} 31. Kxf2 {[%clk 0:00:28.5]} 31... hxg5
{[%clk 0:01:01.6]} 32. h5 {[%clk 0:00:28.2]} 32... f6 {[%clk 0:00:53.5]} 33. Ng6
{[%clk 0:00:27]} 33... Re8 {[%clk 0:00:53.4]} 34. d5 {[%clk 0:00:23.4]} 34...
Rd7 {[%clk 0:00:51.5]} 35. Rd1 {[%clk 0:00:21.4]} 35... Red8 {[%clk 0:00:51.4]}
36. Kf3 {[%clk 0:00:19.1]} 36... Kf7 {[%clk 0:00:47.2]} 37. Ke4 {[%clk
0:00:18.2]} 37... Re8+ {[%clk 0:00:44.8]} 38. Kf5 {[%clk 0:00:18.7]} 38... Re2
{[%clk 0:00:40.1]} 39. Kg4 {[%clk 0:00:17]} 39... Rxb2 {[%clk 0:00:36.7]} 40. d6
{[%clk 0:00:16.1]} 40... Re2 {[%clk 0:00:32.7]} 41. Kf5 {[%clk 0:00:13.6]} 41...
b4 {[%clk 0:00:26.6]} 42. Nh8+ {[%clk 0:00:14]} 42... Kg8 {[%clk 0:00:25.7]} 43.
Ng6 {[%clk 0:00:14.3]} 43... bxc3 {[%clk 0:00:23.8]} 44. Rb1 {[%clk 0:00:13.2]}
44... Re8 {[%clk 0:00:18.2]} 45. Ne7+ {[%clk 0:00:12.4]} 45... Rdxe7 {[%clk
0:00:15.8]} 46. dxe7 {[%clk 0:00:13.3]} 46... Rxe7 {[%clk 0:00:15.8]} 47. Kg6
{[%clk 0:00:14.2]} 47... Re8 {[%clk 0:00:12.8]} 48. Rc1 {[%clk 0:00:14.3]} 48...
Rd8 {[%clk 0:00:08.1]} 49. Rxc3 {[%clk 0:00:14.9]} 49... Rc8 {[%clk 0:00:07.7]}
50. a4 {[%clk 0:00:13.2]} 50... g4 {[%clk 0:00:07.5]} 51. h6 {[%clk 0:00:11.8]}
51... gxh6 {[%clk 0:00:06.9]} 52. Kxh6 {[%clk 0:00:12.7]} 52... Kf7 {[%clk
0:00:07.1]} 53. Kh5 {[%clk 0:00:11.1]} 53... g3 {[%clk 0:00:07.3]} 54. Rxg3
{[%clk 0:00:10.3]} 54... c3 {[%clk 0:00:07.5]} 55. Rg1 {[%clk 0:00:11]} 55... c2
{[%clk 0:00:07.2]} 56. Rc1 {[%clk 0:00:11.6]} 56... Ke6 {[%clk 0:00:07.2]} 57.
Kg4 {[%clk 0:00:12.5]} 57... Ke5 {[%clk 0:00:07.2]} 58. Kf3 {[%clk 0:00:13.1]}
58... Kd4 {[%clk 0:00:07.2]} 59. Ke2 {[%clk 0:00:13.5]} 59... f5 {[%clk
0:00:07.3]} 60. Kd2 {[%clk 0:00:12.9]} 60... f4 {[%clk 0:00:07.5]} 61. Rh1
{[%clk 0:00:12.8]} 61... c1=Q+ {[%clk 0:00:06.3]} 62. Rxc1 {[%clk 0:00:13.3]}
62... Rxc1 {[%clk 0:00:06.3]} 63. Kxc1 {[%clk 0:00:14.2]} 63... Kd3 {[%clk
0:00:05.5]} 64. Kd1 {[%clk 0:00:14.2]} 64... Kc3 {[%clk 0:00:05.5]} 65. Ke1
{[%clk 0:00:15.1]} 65... Kb3 {[%clk 0:00:05.7]} 66. Kf2 {[%clk 0:00:16]} 66...
Kxa4 {[%clk 0:00:06]} 67. Kf3 {[%clk 0:00:16.9]} 67... Kb3 {[%clk 0:00:06.3]}
68. Kxf4 {[%clk 0:00:17.8]} 68... a4 {[%clk 0:00:06.7]} 69. Ke3 {[%clk
0:00:18.7]} 69... a3 {[%clk 0:00:07]} 70. Kd2 {[%clk 0:00:19.6]} 70... a2 {[%clk
0:00:07.3]} 71. Kc1 {[%clk 0:00:20.5]} 71... a1=Q+ {[%clk 0:00:07.4]} 72. Kd2
{[%clk 0:00:19.9]} 72... Kc4 {[%clk 0:00:07.9]} 73. Ke3 {[%clk 0:00:20.8]} 73...
Qd4+ {[%clk 0:00:08]} 0-1

[Event "*** SCC Grand Prix: Titled Tuesday Blitz"]
[Site "Chess.com"]
[Date "2020.06.02"]
[Round "3"]
[White "Gahan-MG"]
[Black "manmanlai1"]
[Result "0-1"]
[WhiteElo "2525"]
[BlackElo "2365"]
[TimeControl "180+1"]
[EndTime "10:30:13 PDT"]
[Termination "manmanlai1 won by resignation"]

1. e4 {[%clk 0:03:00.9]} 1... c5 {[%clk 0:02:59.5]} 2. Nf3 {[%clk 0:03:00.4]}
2... e6 {[%clk 0:02:59.9]} 3. c3 {[%clk 0:03:00.5]} 3... Nf6 {[%clk 0:02:58.2]}
4. e5 {[%clk 0:03:00.8]} 4... Nd5 {[%clk 0:02:58.7]} 5. d4 {[%clk 0:03:01.7]}
5... cxd4 {[%clk 0:02:56.3]} 6. cxd4 {[%clk 0:03:02.6]} 6... b6 {[%clk 0:02:55]}
7. Qa4 {[%clk 0:02:56.8]} 7... Bb7 {[%clk 0:02:51.7]} 8. Bd3 {[%clk 0:02:56.3]}
8... Be7 {[%clk 0:02:42.2]} 9. a3 {[%clk 0:02:55.9]} 9... O-O {[%clk 0:02:42.3]}
10. O-O {[%clk 0:02:55.7]} 10... d6 {[%clk 0:02:39.3]} 11. Re1 {[%clk
0:02:54.9]} 11... Nd7 {[%clk 0:02:37.3]} 12. Qc2 {[%clk 0:02:53.9]} 12... h6
{[%clk 0:02:36.5]} 13. Qe2 {[%clk 0:02:52.2]} 13... Re8 {[%clk 0:02:33.4]} 14.
Qe4 {[%clk 0:02:48.7]} 14... Nf8 {[%clk 0:02:33.1]} 15. Qg4 {[%clk 0:02:48.9]}
15... Kh8 {[%clk 0:02:33.3]} 16. Qh5 {[%clk 0:02:43.8]} 16... Kg8 {[%clk
0:02:29.6]} 17. Bxh6 {[%clk 0:02:33.3]} 17... gxh6 {[%clk 0:02:30.5]} 18. Qxh6
{[%clk 0:02:33.5]} 18... dxe5 {[%clk 0:02:25.4]} 19. Rxe5 {[%clk 0:02:22.9]}
19... Bf6 {[%clk 0:02:13.1]} 20. Rh5 {[%clk 0:02:19.2]} 20... Bg7 {[%clk
0:02:11.4]} 21. Rg5 {[%clk 0:01:56.6]} 21... Qf6 {[%clk 0:02:03.5]} 22. Qh4
{[%clk 0:01:51.3]} 22... Nf4 {[%clk 0:01:57.3]} 23. Bf1 {[%clk 0:01:05.3]} 23...
N8g6 {[%clk 0:01:46.7]} 24. Qg3 {[%clk 0:01:02.9]} 24... Bxf3 {[%clk 0:01:09.2]}
25. gxf3 {[%clk 0:01:01.3]} 25... Rad8 {[%clk 0:00:57.4]} 26. Nc3 {[%clk
0:00:59.7]} 26... Rxd4 {[%clk 0:00:56.7]} 27. Ne4 {[%clk 0:00:52.5]} 27... Qd8
{[%clk 0:00:43.8]} 28. h4 {[%clk 0:00:50.5]} 28... Rd1 {[%clk 0:00:43.5]} 29.
Rxd1 {[%clk 0:00:37.3]} 29... Qxd1 {[%clk 0:00:44.4]} 30. Nc3 {[%clk 0:00:37.3]}
30... Bxc3 {[%clk 0:00:30.9]} 31. Qxf4 {[%clk 0:00:37]} 31... Bg7 {[%clk
0:00:26]} 32. Qg4 {[%clk 0:00:33.3]} 32... Qd4 {[%clk 0:00:24]} 33. f4 {[%clk
0:00:29.5]} 33... Kf8 {[%clk 0:00:15.8]} 34. h5 {[%clk 0:00:29.5]} 34... Ne7
{[%clk 0:00:16.1]} 35. Bd3 {[%clk 0:00:20.5]} 35... Qf6 {[%clk 0:00:15.6]} 36.
Be4 {[%clk 0:00:19.1]} 36... Rd8 {[%clk 0:00:15.6]} 37. f5 {[%clk 0:00:19.2]}
37... exf5 {[%clk 0:00:15.5]} 38. Bxf5 {[%clk 0:00:20.1]} 38... Nxf5 {[%clk
0:00:15.8]} 39. Rxf5 {[%clk 0:00:21]} 39... Qxb2 {[%clk 0:00:15.1]} 40. Qf3
{[%clk 0:00:18.8]} 40... Qa2 {[%clk 0:00:11.5]} 41. Qf4 {[%clk 0:00:18]} 41...
Qe6 {[%clk 0:00:10.1]} 42. Qb4+ {[%clk 0:00:15.4]} 42... Kg8 {[%clk 0:00:09.4]}
43. Qf4 {[%clk 0:00:15.3]} 43... Rd1+ {[%clk 0:00:08.4]} 44. Kg2 {[%clk
0:00:15.6]} 44... Rd5 {[%clk 0:00:08.4]} 45. Rg5 {[%clk 0:00:11.8]} 45... Rxg5+
{[%clk 0:00:07]} 46. Qxg5 {[%clk 0:00:12.7]} 46... Qe4+ {[%clk 0:00:07.4]} 47.
Kg1 {[%clk 0:00:13]} 47... Kh7 {[%clk 0:00:07.7]} 48. a4 {[%clk 0:00:09.6]}
48... Bd4 {[%clk 0:00:07.3]} 49. Kf1 {[%clk 0:00:08.5]} 49... Qd3+ {[%clk
0:00:06.4]} 50. Kg2 {[%clk 0:00:08.7]} 50... Qe4+ {[%clk 0:00:06.7]} 51. Kf1
{[%clk 0:00:09.1]} 51... Qf3 {[%clk 0:00:06.5]} 52. Qh4 {[%clk 0:00:06.6]} 52...
Qxf2+ {[%clk 0:00:05.9]} 53. Qxf2 {[%clk 0:00:07]} 53... Bxf2 {[%clk 0:00:06.4]}
54. Kxf2 {[%clk 0:00:07.9]} 54... a6 {[%clk 0:00:07]} 55. Ke3 {[%clk 0:00:07.8]}
55... b5 {[%clk 0:00:07.4]} 56. a5 {[%clk 0:00:08]} 56... Kh6 {[%clk 0:00:07.5]}
57. Kd4 {[%clk 0:00:08.8]} 57... f5 {[%clk 0:00:06.3]} 58. Kc5 {[%clk
0:00:09.7]} 58... f4 {[%clk 0:00:05.3]} 59. Kb6 {[%clk 0:00:10.4]} 59... f3
{[%clk 0:00:04.9]} 60. Kxa6 {[%clk 0:00:11.3]} 60... f2 {[%clk 0:00:05.6]} 61.
Kb7 {[%clk 0:00:11.3]} 61... f1=Q {[%clk 0:00:05.7]} 62. a6 {[%clk 0:00:12.2]}
62... Qg2+ {[%clk 0:00:06.1]} 63. Kb6 {[%clk 0:00:12.4]} 63... b4 {[%clk
0:00:07]} 64. Kb5 {[%clk 0:00:13.3]} 64... b3 {[%clk 0:00:07.6]} 65. a7 {[%clk
0:00:14.2]} 65... b2 {[%clk 0:00:07.7]} 66. a8=Q {[%clk 0:00:15.1]} 66... Qxa8
{[%clk 0:00:07.8]} 0-1

[Event "*** SCC Grand Prix: Titled Tuesday Blitz"]
[Site "Chess.com"]
[Date "2020.06.02"]
[Round "3"]
[White "MariaFominykh"]
[Black "pavelalexandru07"]
[Result "0-1"]
[WhiteElo "2299"]
[BlackElo "2116"]
[TimeControl "180+1"]
[EndTime "10:30:16 PDT"]
[Termination "pavelalexandru07 won on time"]

1. d4 {[%clk 0:03:00.9]} 1... Nf6 {[%clk 0:02:58.1]} 2. c4 {[%clk 0:03:01.1]}
2... c5 {[%clk 0:02:58]} 3. d5 {[%clk 0:03:00.8]} 3... e6 {[%clk 0:02:58.2]} 4.
Nc3 {[%clk 0:03:00.3]} 4... exd5 {[%clk 0:02:57.9]} 5. cxd5 {[%clk 0:03:01.2]}
5... d6 {[%clk 0:02:58.2]} 6. e4 {[%clk 0:03:01.7]} 6... g6 {[%clk 0:02:58.2]}
7. Nf3 {[%clk 0:03:02.1]} 7... a6 {[%clk 0:02:57]} 8. a4 {[%clk 0:03:01.3]} 8...
Bg4 {[%clk 0:02:56.4]} 9. Be2 {[%clk 0:03:00.5]} 9... Bxf3 {[%clk 0:02:55.7]}
10. Bxf3 {[%clk 0:03:00.3]} 10... Bg7 {[%clk 0:02:55.2]} 11. O-O {[%clk
0:03:00.1]} 11... O-O {[%clk 0:02:55.1]} 12. Bf4 {[%clk 0:02:47.5]} 12... Ne8
{[%clk 0:02:33.1]} 13. Qd2 {[%clk 0:02:38.5]} 13... Nd7 {[%clk 0:02:27]} 14. Bh6
{[%clk 0:02:27.8]} 14... Qa5 {[%clk 0:02:01]} 15. Bxg7 {[%clk 0:02:17.1]} 15...
Kxg7 {[%clk 0:01:38.7]} 16. Be2 {[%clk 0:02:11.8]} 16... Rc8 {[%clk 0:01:35.4]}
17. f4 {[%clk 0:02:02.4]} 17... c4 {[%clk 0:01:34.8]} 18. Qd4+ {[%clk
0:01:59.6]} 18... Kg8 {[%clk 0:01:33]} 19. Bxc4 {[%clk 0:01:57.2]} 19... Qb4
{[%clk 0:01:27.1]} 20. b3 {[%clk 0:01:56.9]} 20... Nc5 {[%clk 0:00:54.5]} 21.
Na2 {[%clk 0:01:53.4]} 21... Nxb3 {[%clk 0:00:49.5]} 22. Nxb4 {[%clk 0:01:36.2]}
22... Nxd4 {[%clk 0:00:49.2]} 23. Bd3 {[%clk 0:01:25.3]} 23... Nf6 {[%clk
0:00:46.7]} 24. Rfe1 {[%clk 0:01:09.3]} 24... Rfe8 {[%clk 0:00:34.6]} 25. a5
{[%clk 0:01:00.3]} 25... Nd7 {[%clk 0:00:29.4]} 26. Rac1 {[%clk 0:00:42.8]}
26... Nc5 {[%clk 0:00:28.6]} 27. e5 {[%clk 0:00:26.2]} 27... Ndb3 {[%clk
0:00:21.6]} 28. Rb1 {[%clk 0:00:20.6]} 28... Nxa5 {[%clk 0:00:21.2]} 29. exd6
{[%clk 0:00:20.8]} 29... Rxe1+ {[%clk 0:00:18.1]} 30. Rxe1 {[%clk 0:00:21.7]}
30... Rd8 {[%clk 0:00:18.3]} 31. Re7 {[%clk 0:00:19.7]} 31... Rxd6 {[%clk
0:00:17.8]} 32. Bc2 {[%clk 0:00:19.1]} 32... b5 {[%clk 0:00:15.6]} 33. Rc7
{[%clk 0:00:18.2]} 33... Nd7 {[%clk 0:00:13.1]} 34. Bb3 {[%clk 0:00:15.7]} 34...
Nxb3 {[%clk 0:00:12.7]} 35. Nc6 {[%clk 0:00:14.6]} 35... Nbc5 {[%clk 0:00:12.6]}
36. Rc8+ {[%clk 0:00:13.9]} 36... Kg7 {[%clk 0:00:12.5]} 37. Ne7 {[%clk
0:00:13.4]} 37... b4 {[%clk 0:00:11.8]} 38. Rc6 {[%clk 0:00:12.2]} 38... Rxc6
{[%clk 0:00:10.5]} 39. dxc6 {[%clk 0:00:12.4]} 39... Nb6 {[%clk 0:00:10.9]} 40.
c7 {[%clk 0:00:12.3]} 40... b3 {[%clk 0:00:10.6]} 41. Nd5 {[%clk 0:00:12.4]}
41... b2 {[%clk 0:00:09.5]} 42. Nc3 {[%clk 0:00:11.5]} 42... Nca4 {[%clk
0:00:07.4]} 43. Nb1 {[%clk 0:00:11.6]} 43... Nc8 {[%clk 0:00:06.3]} 44. Kf2
{[%clk 0:00:11.7]} 44... Nab6 {[%clk 0:00:06.5]} 45. Ke3 {[%clk 0:00:11.3]}
45... Nd5+ {[%clk 0:00:06]} 46. Kd4 {[%clk 0:00:11.2]} 46... Nxc7 {[%clk
0:00:06.6]} 47. Kc3 {[%clk 0:00:11.5]} 47... Ne6 {[%clk 0:00:07]} 48. g3 {[%clk
0:00:10]} 48... Nd6 {[%clk 0:00:07.1]} 49. Kxb2 {[%clk 0:00:10.3]} 49... Ne4
{[%clk 0:00:07.2]} 50. Na3 {[%clk 0:00:09.9]} 50... Nf2 {[%clk 0:00:07.3]} 51.
Nc4 {[%clk 0:00:09.5]} 51... Ng4 {[%clk 0:00:07.2]} 52. h3 {[%clk 0:00:09.1]}
52... Nf2 {[%clk 0:00:07.3]} 53. h4 {[%clk 0:00:08.5]} 53... Ne4 {[%clk
0:00:07.5]} 54. Ne5 {[%clk 0:00:08.2]} 54... Nxg3 {[%clk 0:00:06.9]} 55. Ng4
{[%clk 0:00:07.2]} 55... Nxf4 {[%clk 0:00:06.6]} 56. Ne5 {[%clk 0:00:06.8]}
56... f5 {[%clk 0:00:06.7]} 57. Nc6 {[%clk 0:00:06.6]} 57... Ng2 {[%clk
0:00:05.8]} 58. Nb8 {[%clk 0:00:06.2]} 58... Nxh4 {[%clk 0:00:05.6]} 59. Nxa6
{[%clk 0:00:06]} 59... f4 {[%clk 0:00:06]} 60. Nc5 {[%clk 0:00:05.7]} 60... f3
{[%clk 0:00:06.3]} 61. Nd3 {[%clk 0:00:05.3]} 61... g5 {[%clk 0:00:06.8]} 62.
Nf2 {[%clk 0:00:05.1]} 62... Nhf5 {[%clk 0:00:05.9]} 63. Kc3 {[%clk 0:00:04.3]}
63... h5 {[%clk 0:00:06.2]} 0-1

[Event "*** SCC Grand Prix: Titled Tuesday Blitz"]
[Site "Chess.com"]
[Date "2020.06.02"]
[Round "3"]
[White "Alexander_Donchenko"]
[Black "serhanberat_ozdemir"]
[Result "1/2-1/2"]
[WhiteElo "2693"]
[BlackElo "2528"]
[TimeControl "180+1"]
[EndTime "10:30:19 PDT"]
[Termination "Game drawn - insufficient material"]

1. e4 {[%clk 0:03:00.9]} 1... c5 {[%clk 0:03:00.2]} 2. Nc3 {[%clk 0:03:00.2]}
2... e6 {[%clk 0:03:00.4]} 3. Nf3 {[%clk 0:02:59.4]} 3... a6 {[%clk 0:02:59.9]}
4. d4 {[%clk 0:02:59.5]} 4... cxd4 {[%clk 0:03:00.8]} 5. Nxd4 {[%clk 0:03:00.4]}
5... b5 {[%clk 0:03:01.1]} 6. Be3 {[%clk 0:02:58.9]} 6... Bb7 {[%clk 0:03:00.1]}
7. f3 {[%clk 0:02:58.1]} 7... Qc7 {[%clk 0:02:51.3]} 8. Qd2 {[%clk 0:02:55.5]}
8... Nf6 {[%clk 0:02:48.6]} 9. O-O-O {[%clk 0:02:53.4]} 9... Bb4 {[%clk
0:02:40.8]} 10. Nde2 {[%clk 0:02:50.9]} 10... O-O {[%clk 0:02:37.8]} 11. Kb1
{[%clk 0:02:50.5]} 11... d5 {[%clk 0:02:33.6]} 12. exd5 {[%clk 0:02:46.8]} 12...
Nxd5 {[%clk 0:02:34.5]} 13. Nxd5 {[%clk 0:02:46.2]} 13... Bxd2 {[%clk
0:02:26.3]} 14. Nxc7 {[%clk 0:02:46.3]} 14... Bxe3 {[%clk 0:02:26.6]} 15. Nxa8
{[%clk 0:02:46.6]} 15... Bxa8 {[%clk 0:02:27.5]} 16. Nc3 {[%clk 0:02:45.4]}
16... b4 {[%clk 0:01:55]} 17. Ne4 {[%clk 0:02:44.4]} 17... Bd5 {[%clk
0:01:53.4]} 18. Bd3 {[%clk 0:02:41.1]} 18... a5 {[%clk 0:01:51.4]} 19. Rhe1
{[%clk 0:02:40.3]} 19... Bb6 {[%clk 0:01:48.6]} 20. Nd6 {[%clk 0:02:34.6]} 20...
Rd8 {[%clk 0:01:45.4]} 21. Be4 {[%clk 0:02:33.9]} 21... Rxd6 {[%clk 0:01:38.4]}
22. Bxd5 {[%clk 0:02:33.8]} 22... Kf8 {[%clk 0:01:34]} 23. Be4 {[%clk
0:02:32.9]} 23... Bc7 {[%clk 0:01:33.7]} 24. Rxd6 {[%clk 0:02:32.7]} 24... Bxd6
{[%clk 0:01:34.6]} 25. h3 {[%clk 0:02:31]} 25... h5 {[%clk 0:01:32.8]} 26. Bd3
{[%clk 0:02:24.6]} 26... Nd7 {[%clk 0:01:27.2]} 27. c3 {[%clk 0:02:18.1]} 27...
Ke7 {[%clk 0:01:24]} 28. Kc2 {[%clk 0:02:17.9]} 28... Nc5 {[%clk 0:01:21.9]} 29.
Bb5 {[%clk 0:02:16.7]} 29... h4 {[%clk 0:01:18.5]} 30. Rd1 {[%clk 0:02:14.4]}
30... g5 {[%clk 0:01:14.6]} 31. cxb4 {[%clk 0:02:12]} 31... axb4 {[%clk
0:01:14]} 32. Rd4 {[%clk 0:02:11.3]} 32... e5 {[%clk 0:01:11.9]} 33. Rxb4 {[%clk
0:02:09.4]} 33... Ne6 {[%clk 0:01:12.5]} 34. Kc3 {[%clk 0:01:47.9]} 34... Bxb4+
{[%clk 0:01:09.7]} 35. Kxb4 {[%clk 0:01:48.8]} 35... Nf4 {[%clk 0:01:10.2]} 36.
Bf1 {[%clk 0:01:48.4]} 36... g4 {[%clk 0:01:07.2]} 37. hxg4 {[%clk 0:01:46.7]}
37... Nd5+ {[%clk 0:01:03.4]} 38. Kc4 {[%clk 0:01:27]} 38... Ne3+ {[%clk
0:01:04.3]} 39. Kd3 {[%clk 0:01:27.6]} 39... Nxf1 {[%clk 0:01:04]} 40. a4 {[%clk
0:01:26.3]} 40... Kd6 {[%clk 0:00:58.8]} 41. a5 {[%clk 0:01:25.4]} 41... Kc5
{[%clk 0:00:57.1]} 42. b4+ {[%clk 0:01:24.6]} 42... Kb5 {[%clk 0:00:55.6]} 43.
Ke2 {[%clk 0:01:22.5]} 43... Ng3+ {[%clk 0:00:53.4]} 44. Ke3 {[%clk 0:01:22.7]}
44... f6 {[%clk 0:00:48.6]} 45. Kd3 {[%clk 0:01:19.2]} 45... Ka6 {[%clk
0:00:45.2]} 46. Ke3 {[%clk 0:01:08.2]} 46... Nf1+ {[%clk 0:00:42.5]} 47. Ke2
{[%clk 0:00:56.5]} 47... Ng3+ {[%clk 0:00:42.9]} 48. Kd3 {[%clk 0:00:57]} 48...
Nf1 {[%clk 0:00:39.5]} 49. Ke2 {[%clk 0:00:13.2]} 49... Nh2 {[%clk 0:00:35.1]}
50. Kf2 {[%clk 0:00:10]} 50... e4 {[%clk 0:00:33.7]} 51. Ke2 {[%clk 0:00:04.2]}
51... Kb5 {[%clk 0:00:10.3]} 52. Kf2 {[%clk 0:00:03.8]} 52... Ka6 {[%clk
0:00:08.8]} 53. fxe4 {[%clk 0:00:04]} 53... Nxg4+ {[%clk 0:00:08.7]} 54. Kf3
{[%clk 0:00:04.9]} 54... Ne5+ {[%clk 0:00:04.7]} 55. Kf4 {[%clk 0:00:05.3]}
55... Nd3+ {[%clk 0:00:04.4]} 56. Kf5 {[%clk 0:00:05.6]} 56... Nf2 {[%clk
0:00:03.8]} 57. Kxf6 {[%clk 0:00:02.2]} 57... Nxe4+ {[%clk 0:00:04.4]} 58. Kf5
{[%clk 0:00:02.8]} 58... Nf2 {[%clk 0:00:04.6]} 59. Kf4 {[%clk 0:00:01.9]} 59...
h3 {[%clk 0:00:05.5]} 60. gxh3 {[%clk 0:00:01.2]} 60... Nxh3+ {[%clk 0:00:06.4]}
61. Ke4 {[%clk 0:00:01.2]} 61... Ng5+ {[%clk 0:00:07.3]} 62. Kd4 {[%clk
0:00:01.7]} 62... Nf7 {[%clk 0:00:07.7]} 63. Kc5 {[%clk 0:00:02.6]} 63... Nd8
{[%clk 0:00:06]} 64. Kd6 {[%clk 0:00:02.8]} 64... Nf7+ {[%clk 0:00:05.2]} 65.
Kc6 {[%clk 0:00:03]} 65... Nd8+ {[%clk 0:00:05.3]} 66. Kc7 {[%clk 0:00:03.4]}
66... Nb7 {[%clk 0:00:04.6]} 67. Kc6 {[%clk 0:00:03.1]} 67... Nxa5+ {[%clk
0:00:04.6]} 68. bxa5 {[%clk 0:00:03.2]} 68... Kxa5 {[%clk 0:00:05.5]} 1/2-1/2